[Event "2nd Namma Bengaluru Open-A 2025"]
[Site "Bengaluru"]
[Date "2025.04.15"]
[Round "7.13"]
[White "Mehar, Chinna Reddy C.H."]
[Black "Karthikeyan, P.."]
[Result "1/2-1/2"]
[Annotator "RC"]
[ECO "C78"]
[WhiteElo "2418"]
[BlackElo "2312"]
[PlyCount "81"]
[EventDate "2025.04.10"]
[EventType "swiss"]
[EventCountry "IND"]
[SourceTitle "playchess.com"]
[Source "ChessBase"]
[SourceQuality "1"]
[TimeControl "5400+30"]

1. e4 {[%emt 0:00:28]} e5 {[%emt 0:00:50]} 2. Nf3 {[%emt 0:00:10]} Nc6 {[%emt 0:00:07]} 3. Bb5 {[%emt 0:00:09]} a6 {[%emt 0:00:24]} 4. Ba4 {[%emt 0:00:08]} Nf6 {[%emt 0:04:17]} 5. O-O {[%emt 0:00:16]} b5 {[%emt 0:01:23]} 6. Bb3 {[%emt 0:00:10]} Bb7 {[%emt 0:00:09]} 7. d3 {[%emt 0:01:24]} Bc5 {[%emt 0:00:09]} 8. a4 {[%emt 0:00:18]} O-O {[%emt 0:01:37]} 9. Bg5 {[%emt 0:03:17]} h6 {[%emt 0:00:42]} 10. Bh4 {[%emt 0:00:31]} g5 {[%emt 0:01:57]} 11. Bg3 {[%emt 0:00:05]} d6 {[%emt 0:00:13]} 12. c3 {[%emt 0:01:54]} Ba7 {[%emt 0:10:23]} 13. Na3 {[%emt 0:04:11]} b4 {[%emt 0:04:50]} 14. Nc4 {[%emt 0:02:36]} bxc3 {[%emt 0:01:51]} 15. bxc3 {[%emt 0:00:06]} a5 {[%emt 0:00:04]} 16. Ne3 {[%emt 0:07:15]} Bc8 {[%emt 0:05:23]} 17. Nd2 {[%emt 0:03:19]} Rb8 {[%emt 0:01:14]} 18. Rb1 {[%emt 0:00:42]} Kg7 {[%emt 0:09:02]} 19. Qe2 {[%emt 0:06:15]} Bd7 {[%emt 0:11:22]} 20. Ndc4 {[%emt 0:02:04]} h5 {[%emt 0:02:53]} 21. h3 {[%emt 0:02:40]} Rh8 {[%emt 0:04:44]} 22. Bc2 {[%emt 0:03:05]} h4 {[%emt 0:01:15]} 23. Bh2 {[%emt 0:00:25]} Nh5 {[%emt 0:01:46]} 24. Qf3 {[%emt 0:02:15]} Nf4 {[%emt 0:02:30]} 25. Rxb8 {[%emt 0:03:36]} Qxb8 {[%emt 0:00:15]} 26. Nf5+ {[%emt 0:01:13]} Kf8 {[%emt 0:03:20]} 27. Rb1 {[%emt 0:01:47]} Qd8 {[%emt 0:02:21]} 28. Nce3 {[%emt 0:02:58]} Be6 {[%emt 0:05:47]} 29. Rd1 {[%emt 0:10:26]} Qf6 {[%emt 0:01:50]} 30. Ng4 {[%emt 0:01:50]} Qd8 {[%emt 0:00:29]} 31. d4 {[%emt 0:02:54]} exd4 {[%emt 0:01:16]} 32. Nxd4 {[%emt 0:08:29]} Bxg4 {[%emt 0:02:39]} 33. Qxg4 {[%emt 0:01:04]} Bxd4 {[%emt 0:07:38]} 34. cxd4 {[%emt 0:00:05]} Qf6 {[%emt 0:00:07]} 35. Bb3 {[%emt 0:07:24]} Nxd4 {[%emt 0:04:32]} 36. Bxf4 {[%emt 0:09:09]} gxf4 {[%emt 0:00:23]} 37. Rxd4 {[%emt 0:00:30]} Qxd4 {[%emt 0:00:02]} 38. Qc8+ {[%emt 0:00:12]} Kg7 {[%emt 0:00:28]} 39. Qg4+ {[%emt 0:00:04]} Kf8 {[%emt 0:00:25]} 40. Qc8+ {[%emt 0:01:30]} Kg7 {[%emt 0:00:11]} 41. Qg4+ {[%emt 0:00:04]} 1/2-1/2

[Event "2nd Namma Bengaluru Open-A 2025"]
[Site "Bengaluru"]
[Date "2025.04.15"]
[Round "7.14"]
[White "Podolchenko, Evgeniy"]
[Black "Kaustuv, Kundu"]
[Result "1-0"]
[Annotator "RC"]
[ECO "E94"]
[WhiteElo "2307"]
[BlackElo "2407"]
[PlyCount "85"]
[EventDate "2025.04.10"]
[EventType "swiss"]
[EventCountry "IND"]
[SourceTitle "playchess.com"]
[Source "ChessBase"]
[SourceQuality "1"]
[TimeControl "5400+30"]

1. d4 {[%emt 0:01:17]} Nf6 {[%emt 0:00:34]} 2. c4 {[%emt 0:00:06]} g6 {[%emt 0:00:05]} 3. Nc3 {[%emt 0:00:04]} Bg7 {[%emt 0:00:06]} 4. e4 {[%emt 0:00:04]} d6 {[%emt 0:00:06]} 5. Nf3 {[%emt 0:00:17]} O-O {[%emt 0:00:08]} 6. Be2 {[%emt 0:00:03]} e5 {[%emt 0:00:08]} 7. O-O {[%emt 0:00:06]} exd4 {[%emt 0:00:04]} 8. Nxd4 {[%emt 0:00:06]} Re8 {[%emt 0:00:05]} 9. f3 {[%emt 0:00:06]} c6 {[%emt 0:00:05]} 10. Kh1 {[%emt 0:00:24]} Nbd7 {[%emt 0:00:22]} 11. Be3 {[%emt 0:12:29]} d5 {[%emt 0:09:16]} 12. cxd5 {[%emt 0:04:45]} cxd5 {[%emt 0:00:12]} 13. Ndb5 {[%emt 0:01:15]} Nb6 {[%emt 0:17:17]} 14. a4 {[%emt 0:13:34]} Be6 {[%emt 0:23:08]} 15. a5 {[%emt 0:20:11]} Nc4 {[%emt 0:01:31]} 16. Bxc4 {[%emt 0:00:13]} dxc4 {[%emt 0:00:06]} 17. Bxa7 {[%emt 0:05:07]} Qe7 {[%emt 0:06:08]} 18. Bb6 {[%emt 0:03:58]} Nd7 {[%emt 0:01:16]} 19. Nc7 {[%emt 0:08:50]} Nxb6 {[%emt 0:00:21]} 20. Nxe8 {[%emt 0:05:45]} Bxc3 {[%emt 0:07:42]} 21. axb6 {[%emt 0:00:05]} Rd8 {[%emt 0:00:27]} 22. Qc2 {[%emt 0:03:29]} Bb4 {[%emt 0:04:09]} 23. Nc7 {[%emt 0:00:41]} Rd2 {[%emt 0:00:05]} 24. Nxe6 {[%emt 0:00:36]} Qxe6 {[%emt 0:01:38]} 25. Qc1 {[%emt 0:01:12]} Kg7 {[%emt 0:09:59]} 26. Ra4 {[%emt 0:02:34]} Qxb6 {[%emt 0:00:28]} 27. Qxc4 {[%emt 0:00:38]} Rxb2 {[%emt 0:00:18]} 28. Ra2 {[%emt 0:00:34]} Rxa2 {[%emt 0:03:08]} 29. Qxa2 {[%emt 0:00:03]} Bc3 {[%emt 0:02:07]} 30. Rb1 {[%emt 0:00:11]} Qf6 {[%emt 0:00:53]} 31. Qe2 {[%emt 0:03:39]} b6 {[%emt 0:01:17]} 32. g3 {[%emt 0:00:12]} h5 {[%emt 0:00:13]} 33. Kg2 {[%emt 0:00:41]} Bd4 {[%emt 0:00:16]} 34. h4 {[%emt 0:00:27]} Kh7 {[%emt 0:00:43]} 35. Qc4 {[%emt 0:00:33]} Kg7 {[%emt 0:00:40]} 36. Rd1 {[%emt 0:00:07]} Bc5 {[%emt 0:00:12]} 37. Rd7 {[%emt 0:00:09]} Kf8 {[%emt 0:04:49]} 38. Qd5 {[%emt 0:00:20]} Kg8 {[%emt 0:00:43]} 39. Rb7 {[%emt 0:00:17]} Qb2+ {[%emt 0:00:24]} 40. Kh3 {[%emt 0:00:02]} Qf6 {[%emt 0:00:14]} 41. f4 {[%emt 0:00:11]} Be7 {[%emt 0:00:32]} 42. Ra7 {[%emt 0:01:37]} Kf8 {[%emt 0:03:01]} 43. Qd7 {[%emt 0:00:10]} 1-0

[Event "2nd Namma Bengaluru Open-A 2025"]
[Site "Bengaluru"]
[Date "2025.04.15"]
[Round "7.15"]
[White "Audi Ameya"]
[Black "Utsab Chatterjee"]
[Result "1-0"]
[Annotator "RC"]
[ECO "B90"]
[WhiteElo "2404"]
[BlackElo "2299"]
[PlyCount "49"]
[EventDate "2025.04.10"]
[EventType "swiss"]
[EventCountry "IND"]
[SourceTitle "playchess.com"]
[Source "ChessBase"]
[SourceQuality "1"]
[TimeControl "5400+30"]

1. e4 {[%emt 0:00:07]} c5 {[%emt 0:00:32]} 2. Nf3 {[%emt 0:00:06]} d6 {[%emt 0:00:14]} 3. d4 {[%emt 0:00:03]} cxd4 {[%emt 0:00:07]} 4. Nxd4 {[%emt 0:00:03]} Nf6 {[%emt 0:00:04]} 5. Nc3 {[%emt 0:00:04]} a6 {[%emt 0:00:07]} 6. h3 {[%emt 0:00:20]} e5 {[%emt 0:00:23]} 7. Nf3 {[%emt 0:00:26]} Be7 {[%emt 0:02:04]} 8. g4 {[%emt 0:00:11]} h6 {[%emt 0:00:22]} 9. Rg1 {[%emt 0:00:32]} g5 {[%emt 0:03:02]} 10. Nd2 {[%emt 0:01:29]} Nbd7 {[%emt 0:05:18]} 11. Nc4 {[%emt 0:11:04]} Nc5 {[%emt 0:02:43]} 12. Be3 {[%emt 0:01:07]} Qc7 {[%emt 0:06:07]} 13. a4 {[%emt 0:00:35]} Qc6 {[%emt 0:11:24]} 14. Nd5 {[%emt 0:17:34]} Ncxe4 {[%emt 0:09:39]} 15. Nb4 {[%emt 0:10:51]} Qc7 {[%emt 0:00:18]} 16. Nb6 {[%emt 0:01:07]} Rb8 {[%emt 0:00:06]} 17. N6d5 {[%emt 0:02:34]} Nxd5 {[%emt 0:03:10]} 18. Nxd5 {[%emt 0:00:04]} Qc6 {[%emt 0:00:22]} 19. Bg2 {[%emt 0:09:26]} f5 {[%emt 0:00:08]} 20. gxf5 {[%emt 0:00:03]} Bxf5 {[%emt 0:00:04]} 21. Qd3 {[%emt 0:00:23]} Ng3 {[%emt 0:01:46]} 22. Nxe7 {[%emt 0:03:29]} Qxg2 {[%emt 0:01:15]} 23. Rxg2 {[%emt 0:01:42]} Bxd3 {[%emt 0:00:06]} 24. cxd3 {[%emt 0:00:07]} Kxe7 {[%emt 0:00:13]} 25. fxg3 {[%emt 0:00:12]} 1-0

[Event "2nd Namma Bengaluru Open-A 2025"]
[Site "Bengaluru"]
[Date "2025.04.15"]
[Round "7.16"]
[White "Anuj Shrivatri"]
[Black "Ajay Santhosh Parvathareddy"]
[Result "1-0"]
[Annotator "RC"]
[ECO "A38"]
[WhiteElo "2400"]
[BlackElo "2297"]
[PlyCount "109"]
[EventDate "2025.04.10"]
[EventType "swiss"]
[EventCountry "IND"]
[SourceTitle "playchess.com"]
[Source "ChessBase"]
[SourceQuality "1"]
[TimeControl "5400+30"]

1. c4 {[%emt 0:00:09]} Nf6 {[%emt 0:04:32]} 2. Nc3 {[%emt 0:00:09]} c5 {[%emt 0:00:13]} 3. g3 {[%emt 0:00:06]} g6 {[%emt 0:00:04]} 4. Bg2 {[%emt 1:32:06]} Bg7 {[%emt 0:00:05]} 5. Nf3 {[%emt 0:00:00]} Nc6 {[%emt 0:00:05]} 6. d4 {[%emt 0:00:00]} cxd4 {[%emt 0:00:05]} 7. Nxd4 {[%emt 0:00:00]} h5 {[%emt 0:00:07]} 8. h3 {[%emt 0:00:00]} O-O {[%emt 0:00:08]} 9. Be3 {[%emt 0:00:00]} Nxd4 {[%emt 0:03:34]} 10. Bxd4 {[%emt 0:00:00]} d6 {[%emt 0:00:08]} 11. b3 {[%emt 0:00:00]} Rb8 {[%emt 0:08:52]} 12. O-O {[%emt 0:00:00]} b6 {[%emt 0:03:06]} 13. Qd2 {[%emt 0:00:00]} Be6 {[%emt 0:13:37]} 14. Kh2 {[%emt 0:00:00]} a6 {[%emt 0:04:13]} 15. a4 {[%emt 0:00:00]} b5 {[%emt 0:20:12]} 16. axb5 {[%emt 0:00:00]} axb5 {[%emt 0:00:01]} 17. cxb5 {[%emt 0:00:00]} Bxb3 {[%emt 0:06:59]} 18. Rfb1 {[%emt 0:00:00]} Be6 {[%emt 0:00:09]} 19. b6 {[%emt 0:00:00]} d5 {[%emt 0:10:24]} 20. e3 {[%emt 0:00:00]} h4 {[%emt 0:11:12]} 21. g4 {[%emt 0:00:00]} Qd6+ {[%emt 0:04:52]} 22. f4 {[%emt 0:00:00]} Ne4 {[%emt 0:01:19]} 23. Nxe4 {[%emt 0:00:00]} dxe4 {[%emt 0:00:20]} 24. Bxe4 {[%emt 0:00:00]} f5 {[%emt 0:01:39]} 25. gxf5 {[%emt 0:00:00]} Bxf5 {[%emt 0:00:01]} 26. Bxf5 {[%emt 0:00:00]} Rxf5 {[%emt 0:00:02]} 27. Qb4 {[%emt 0:00:00]} Bxd4 {[%emt 0:01:00]} 28. Qxd6 {[%emt 0:00:00]} exd6 {[%emt 0:00:04]} 29. exd4 {[%emt 0:00:00]} Rxf4 {[%emt 0:00:04]} 30. b7 {[%emt 0:00:00]} Kg7 {[%emt 0:01:10]} 31. Ra8 {[%emt 0:00:26]} Rff8 {[%emt 0:00:13]} 32. Rxb8 {[%emt 0:00:06]} Rxb8 {[%emt 0:00:02]} 33. Kg2 {[%emt 0:00:06]} Kf6 {[%emt 0:00:10]} 34. Kf3 {[%emt 0:00:04]} Ke6 {[%emt 0:02:54]} 35. Kg4 {[%emt 0:00:26]} Kd5 {[%emt 0:00:04]} 36. Rb4 {[%emt 0:00:07]} Ke4 {[%emt 0:00:09]} 37. Kxh4 {[%emt 0:00:44]} Kf4 {[%emt 0:00:20]} 38. d5+ {[%emt 0:00:05]} Kf5 {[%emt 0:00:07]} 39. Kg3 {[%emt 0:02:21]} Ke5 {[%emt 0:01:42]} 40. Rb5 {[%emt 0:00:04]} Kd4 {[%emt 0:00:09]} 41. Kg4 {[%emt 0:00:04]} Kc4 {[%emt 0:00:04]} 42. Rb1 {[%emt 0:00:14]} Kxd5 {[%emt 0:00:06]} 43. Kg5 {[%emt 0:00:03]} Kc6 {[%emt 0:05:06]} 44. Kxg6 {[%emt 0:00:07]} d5 {[%emt 0:00:05]} 45. Kf5 {[%emt 0:03:09]} Kc7 {[%emt 0:01:33]} 46. Ke5 {[%emt 0:00:36]} Re8+ {[%emt 0:00:12]} 47. Kxd5 {[%emt 0:00:05]} Kb8 {[%emt 0:00:03]} 48. h4 {[%emt 0:04:05]} Rh8 {[%emt 0:02:09]} 49. Rb4 {[%emt 0:00:30]} Rf8 {[%emt 0:00:01]} 50. Ke6 {[%emt 0:00:14]} Rf1 {[%emt 0:00:06]} 51. h5 {[%emt 0:02:11]} Rh1 {[%emt 0:00:08]} 52. Rb5 {[%emt 0:00:07]} Rf1 {[%emt 0:00:08]} 53. Ke7 {[%emt 0:00:16]} Rh1 {[%emt 0:00:29]} 54. Kf6 {[%emt 0:00:15]} Rf1+ {[%emt 0:00:10]} 55. Kg6 {[%emt 0:00:16]} 1-0

[Event "2nd Namma Bengaluru Open-A 2025"]
[Site "Bengaluru"]
[Date "2025.04.15"]
[Round "7.17"]
[White "Nandish V S"]
[Black "Fedorov, Alexei"]
[Result "1/2-1/2"]
[Annotator "RC"]
[ECO "B33"]
[WhiteElo "2014"]
[BlackElo "2396"]
[PlyCount "69"]
[EventDate "2025.04.10"]
[EventType "swiss"]
[EventCountry "IND"]
[SourceTitle "playchess.com"]
[Source "ChessBase"]
[SourceQuality "1"]
[TimeControl "5400+30"]

1. e4 {[%emt 0:01:52]} c5 {[%emt 0:00:09]} 2. Nf3 {[%emt 0:00:05]} Nc6 {[%emt 1:31:21]} 3. d4 {[%emt 0:00:07]} cxd4 {[%emt 0:00:00]} 4. Nxd4 {[%emt 0:00:04]} Qb6 {[%emt 0:00:00]} 5. Nb3 {[%emt 0:00:04]} Nf6 {[%emt 0:00:00]} 6. Nc3 {[%emt 0:00:05]} e6 {[%emt 0:00:00]} 7. Be3 {[%emt 0:00:21]} Qc7 {[%emt 0:00:00]} 8. Bd3 {[%emt 0:01:34]} d6 {[%emt 0:00:00]} 9. f4 {[%emt 0:00:22]} a6 {[%emt 0:00:00]} 10. a4 {[%emt 0:01:28]} b6 {[%emt 0:00:00]} 11. Qe2 {[%emt 0:06:55]} Be7 {[%emt 0:00:00]} 12. h3 {[%emt 0:02:05]} O-O {[%emt 0:00:00]} 13. O-O {[%emt 0:01:55]} Bb7 {[%emt 0:00:00]} 14. Qf2 {[%emt 0:05:32]} Nd7 {[%emt 0:00:00]} 15. Na2 {[%emt 0:05:55]} Bf6 {[%emt 0:00:00]} 16. c3 {[%emt 0:01:58]} Ne7 {[%emt 0:00:00]} 17. Bc2 {[%emt 0:10:10]} g6 {[%emt 0:00:00]} 18. Rad1 {[%emt 0:04:04]} Rad8 {[%emt 0:00:00]} 19. f5 {[%emt 0:11:20]} gxf5 {[%emt 0:00:00]} 20. Qg3+ {[%emt 0:05:13]} Kh8 {[%emt 0:00:00]} 21. Qxd6 {[%emt 0:01:06]} Qc8 {[%emt 0:00:00]} 22. Bd4 {[%emt 0:09:05]} Nc6 {[%emt 0:00:00]} 23. Bxf6+ {[%emt 0:00:54]} Nxf6 {[%emt 0:00:00]} 24. Qf4 {[%emt 0:00:46]} Rxd1 {[%emt 0:00:00]} 25. Rxd1 {[%emt 0:00:14]} Rg8 {[%emt 0:00:00]} 26. Rd2 {[%emt 0:08:21]} Ne7 {[%emt 0:00:00]} 27. Qe5 {[%emt 0:02:30]} Rg6 {[%emt 0:00:00]} 28. exf5 {[%emt 0:11:01]} Nxf5 {[%emt 0:00:00]} 29. Nd4 {[%emt 0:03:26]} Qg8 {[%emt 0:05:15]} 30. g4 {[%emt 0:02:59]} Rxg4+ {[%emt 0:01:15]} 31. hxg4 {[%emt 0:00:01]} Qxg4+ {[%emt 0:00:07]} 32. Kf2 {[%emt 0:00:56]} Qh4+ {[%emt 0:00:15]} 33. Ke2 {[%emt 0:01:00]} Qh5+ {[%emt 0:00:23]} 34. Ke1 {[%emt 0:01:11]} Qh1+ {[%emt 0:00:17]} 35. Ke2 {[%emt 0:00:30]} 1/2-1/2

[Event "2nd Namma Bengaluru Open-A 2025"]
[Site "Bengaluru"]
[Date "2025.04.15"]
[Round "7.18"]
[White "Sharnarthi Viresh"]
[Black "Hari Madhavan N B"]
[Result "0-1"]
[Annotator "RC"]
[ECO "E01"]
[WhiteElo "2232"]
[BlackElo "2393"]
[PlyCount "150"]
[EventDate "2025.04.10"]
[EventType "swiss"]
[EventCountry "IND"]
[SourceTitle "playchess.com"]
[Source "ChessBase"]
[SourceQuality "1"]
[TimeControl "5400+30"]

1. d4 {[%emt 0:00:32]} d5 {[%emt 0:01:37]} 2. c4 {[%emt 0:00:04]} c6 {[%emt 0:00:03]} 3. Nf3 {[%emt 0:00:06]} Nf6 {[%emt 0:00:06]} 4. Nc3 {[%emt 0:00:08]} e6 {[%emt 0:00:44]} 5. g3 {[%emt 0:00:10]} dxc4 {[%emt 0:04:55]} 6. a4 {[%emt 0:00:25]} Nbd7 {[%emt 0:03:04]} 7. Bg2 {[%emt 0:05:51]} a5 {[%emt 0:01:20]} 8. O-O {[%emt 0:01:19]} Bb4 {[%emt 0:00:21]} 9. Qc2 {[%emt 0:11:09]} O-O {[%emt 0:01:16]} 10. Rd1 {[%emt 0:00:53]} Qe7 {[%emt 0:03:14]} 11. Bg5 {[%emt 0:18:35]} h6 {[%emt 0:11:36]} 12. Bxf6 {[%emt 0:01:13]} Qxf6 {[%emt 0:00:21]} 13. Ne4 {[%emt 0:04:30]} Qe7 {[%emt 0:02:20]} 14. Ne5 {[%emt 0:01:38]} Nb6 {[%emt 0:02:59]} 15. Rac1 {[%emt 0:01:20]} Rd8 {[%emt 0:00:22]} 16. Nxc4 {[%emt 0:05:55]} Nxc4 {[%emt 0:06:46]} 17. Qxc4 {[%emt 0:00:06]} Bd7 {[%emt 0:00:26]} 18. h4 {[%emt 0:02:23]} e5 {[%emt 0:05:26]} 19. dxe5 {[%emt 0:01:12]} Qxe5 {[%emt 0:02:48]} 20. Nc5 {[%emt 0:00:18]} Bxc5 {[%emt 0:05:57]} 21. Qxc5 {[%emt 0:00:05]} Qxc5 {[%emt 0:00:08]} 22. Rxc5 {[%emt 0:00:06]} Kf8 {[%emt 0:00:35]} 23. Bf3 {[%emt 0:01:12]} Ke7 {[%emt 0:00:24]} 24. g4 {[%emt 0:08:03]} g6 {[%emt 0:12:47]} 25. Rb1 {[%emt 0:03:10]} Be6 {[%emt 0:04:38]} 26. b4 {[%emt 0:00:17]} axb4 {[%emt 0:01:28]} 27. Rxb4 {[%emt 0:00:23]} Rd1+ {[%emt 0:00:07]} 28. Kg2 {[%emt 0:01:01]} Ra7 {[%emt 0:00:04]} 29. Rc2 {[%emt 0:01:19]} Kd6 {[%emt 0:06:04]} 30. Rxb7 {[%emt 0:11:09]} Rxb7 {[%emt 0:00:14]} 31. Rxc6+ {[%emt 0:00:02]} Ke7 {[%emt 0:00:43]} 32. Rxe6+ {[%emt 0:00:05]} Kxe6 {[%emt 0:00:55]} 33. Bxb7 {[%emt 0:00:07]} Rd4 {[%emt 0:00:06]} 34. Kg3 {[%emt 0:02:21]} Rxa4 {[%emt 0:00:58]} 35. e3 {[%emt 0:07:09]} Rb4 {[%emt 0:00:39]} 36. Bc6 {[%emt 0:00:15]} Kd6 {[%emt 0:00:16]} 37. Be8 {[%emt 0:00:54]} Rb7 {[%emt 0:00:17]} 38. g5 {[%emt 0:00:22]} hxg5 {[%emt 0:00:18]} 39. hxg5 {[%emt 0:00:28]} Re7 {[%emt 0:00:45]} 40. Ba4 {[%emt 0:00:36]} Re5 {[%emt 0:00:12]} 41. f4 {[%emt 0:00:43]} Rxe3+ {[%emt 0:00:06]} 42. Kg4 {[%emt 0:00:03]} Rc3 {[%emt 0:05:19]} 43. Be8 {[%emt 0:00:29]} Ke7 {[%emt 0:00:02]} 44. Bb5 {[%emt 0:00:08]} Ke6 {[%emt 0:00:10]} 45. Ba4 {[%emt 0:01:40]} Kd6 {[%emt 0:00:15]} 46. Be8 {[%emt 0:00:16]} Rc7 {[%emt 0:00:05]} 47. Ba4 {[%emt 0:00:38]} Kd5 {[%emt 0:00:41]} 48. Bb3+ {[%emt 0:02:37]} Ke4 {[%emt 0:00:11]} 49. Ba2 {[%emt 0:00:13]} Rb7 {[%emt 0:00:33]} 50. Kg3 {[%emt 0:00:05]} Kd4 {[%emt 0:03:30]} 51. Kg4 {[%emt 0:02:13]} Ke4 {[%emt 0:00:46]} 52. Kg3 {[%emt 0:00:26]} Ke3 {[%emt 0:17:33]} 53. Bd5 {[%emt 0:01:00]} Re7 {[%emt 0:00:00]} 54. Bb3 {[%emt 0:02:18]} Ra7 {[%emt 0:00:00]} 55. Bd5 {[%emt 0:01:28]} Kd4 {[%emt 0:00:00]} 56. Bc6 {[%emt 0:00:07]} Rc7 {[%emt 0:00:00]} 57. Bf3 {[%emt 0:02:50]} Rc5 {[%emt 0:00:00]} 58. Bg2 {[%emt 0:03:21]} Ke3 {[%emt 0:00:00]} 59. Bh3 {[%emt 0:00:16]} Rf5 {[%emt 0:00:00]} 60. Bxf5 {[%emt 0:02:14]} gxf5 {[%emt 0:00:00]} 61. Kh4 {[%emt 0:00:20]} Kxf4 {[%emt 0:00:00]} 62. Kh5 {[%emt 0:00:13]} Ke5 {[%emt 0:00:00]} 63. Kh6 {[%emt 0:00:21]} f4 {[%emt 0:00:00]} 64. Kg7 {[%emt 0:00:02]} Ke6 {[%emt 0:00:00]} 65. g6 {[%emt 0:00:11]} fxg6 {[%emt 0:00:00]} 66. Kxg6 {[%emt 0:00:03]} f3 {[%emt 0:00:00]} 67. Kg5 {[%emt 0:00:03]} f2 {[%emt 0:00:00]} 68. Kf4 {[%emt 0:00:04]} f1=Q+ {[%emt 0:00:00]} 69. Ke4 {[%emt 0:00:02]} Qc4+ {[%emt 0:00:00]} 70. Ke3 {[%emt 0:00:04]} Ke5 {[%emt 0:00:00]} 71. Kf3 {[%emt 0:00:03]} Qd3+ {[%emt 0:00:00]} 72. Kf2 {[%emt 0:00:04]} Kf4 {[%emt 0:00:00]} 73. Kg2 {[%emt 0:00:04]} Qe2+ {[%emt 0:00:00]} 74. Kg1 {[%emt 0:00:05]} Kg3 {[%emt 0:00:00]} 75. Kh1 {[%emt 0:00:01]} Qf1# {[%emt 0:00:00]} 0-1

[Event "2nd Namma Bengaluru Open-A 2025"]
[Site "Bengaluru"]
[Date "2025.04.15"]
[Round "7.19"]
[White "Setumadhav Yellumahanthi"]
[Black "Vignesh B"]
[Result "1/2-1/2"]
[Annotator "ChessBase"]
[ECO "C11"]
[WhiteElo "2300"]
[BlackElo "2191"]
[PlyCount "65"]
[EventDate "2025.04.10"]
[EventType "swiss"]
[EventCountry "IND"]
[SourceTitle "playchess.com"]
[Source "ChessBase"]
[SourceQuality "1"]
[TimeControl "5400+30"]

1. e4 {[%emt 0:00:03]} e6 {[%emt 0:03:47]} 2. d4 {[%emt 0:00:07]} d5 {[%emt 0:00:05]} 3. Nc3 {[%emt 0:00:08]} Nf6 {[%emt 0:00:17]} 4. e5 {[%emt 0:00:06]} Nfd7 {[%emt 0:00:05]} 5. f4 {[%emt 0:00:09]} c5 {[%emt 0:00:06]} 6. Nf3 {[%emt 0:00:06]} Nc6 {[%emt 0:00:05]} 7. Be3 {[%emt 0:00:07]} a6 {[%emt 0:00:08]} 8. a3 {[%emt 0:00:27]} b5 {[%emt 0:00:33]} 9. Bd3 {[%emt 0:02:11]} Qb6 {[%emt 0:04:34]} 10. O-O {[%emt 0:00:31]} Nxd4 {[%emt 0:13:33]} 11. Nxd4 {[%emt 0:01:50]} cxd4 {[%emt 0:00:08]} 12. Bf2 {[%emt 0:00:05]} Bc5 {[%emt 0:12:56]} 13. Ne2 {[%emt 0:02:30]} a5 {[%emt 0:00:05]} 14. b4 {[%emt 0:01:11]} axb4 {[%emt 0:03:34]} 15. axb4 {[%emt 0:00:10]} Rxa1 {[%emt 0:00:04]} 16. Qxa1 {[%emt 0:00:08]} Bxb4 {[%emt 0:00:47]} 17. Rb1 {[%emt 0:01:06]} Qa5 {[%emt 0:04:01]} 18. Qxa5 {[%emt 0:24:52]} Bxa5 19. Bxb5 {[%emt 0:02:20]} O-O {[%emt 0:07:55]} 20. Nxd4 {[%emt 0:00:46]} Bb6 {[%emt 0:05:29]} 21. Nc6 {[%emt 0:28:15]} Bc5 {[%emt 0:01:59]} 22. Be2 {[%emt 0:10:15]} g6 {[%emt 0:16:24]} 23. Bxc5 {[%emt 0:03:06]} Nxc5 {[%emt 0:00:06]} 24. Rb8 {[%emt 0:00:19]} Ba6 {[%emt 0:00:24]} 25. Rxf8+ {[%emt 0:00:08]} Kxf8 {[%emt 0:00:05]} 26. Bxa6 {[%emt 0:00:04]} Nxa6 {[%emt 0:00:05]} 27. Kf2 {[%emt 0:00:04]} Ke8 {[%emt 0:00:21]} 28. Ke3 {[%emt 0:00:04]} Kd7 {[%emt 0:26:54]} 29. Nd4 {[%emt 0:00:04]} Ke7 {[%emt 0:00:00]} 30. Nc6+ {[%emt 0:00:03]} Kd7 {[%emt 0:00:00]} 31. Nd4 {[%emt 0:00:04]} Ke7 {[%emt 0:00:00]} 32. Nc6+ {[%emt 0:00:03]} Kd7 {[%emt 0:00:00]} 33. Nd4 {[%emt 0:00:03]} 1/2-1/2

[Event "2nd Namma Bengaluru Open-A 2025"]
[Site "Bengaluru"]
[Date "2025.04.15"]
[Round "7.20"]
[White "Viani Antonio Dcunha"]
[Black "Kshatriya Nitin Vekhande"]
[Result "1-0"]
[Annotator "RC"]
[ECO "B78"]
[WhiteElo "2378"]
[BlackElo "2133"]
[PlyCount "125"]
[EventDate "2025.04.10"]
[EventType "swiss"]
[EventCountry "IND"]
[SourceTitle "playchess.com"]
[Source "ChessBase"]
[SourceQuality "1"]
[TimeControl "5400+30"]

1. e4 {[%emt 0:00:32]} c5 {[%emt 0:00:05]} 2. Nf3 {[%emt 0:00:08]} d6 {[%emt 0:00:18]} 3. d4 {[%emt 0:00:13]} cxd4 {[%emt 0:00:03]} 4. Nxd4 {[%emt 0:00:08]} Nf6 {[%emt 0:00:04]} 5. Nc3 {[%emt 0:00:10]} g6 {[%emt 0:00:06]} 6. Be3 {[%emt 0:00:13]} Bg7 {[%emt 0:00:04]} 7. f3 {[%emt 0:00:38]} O-O {[%emt 0:00:06]} 8. Qd2 {[%emt 0:00:35]} Nc6 9. Bc4 {[%emt 0:00:36]} Bd7 {[%emt 0:00:10]} 10. O-O-O {[%emt 0:00:53]} Rc8 {[%emt 0:00:03]} 11. Bb3 {[%emt 0:00:24]} Ne5 {[%emt 0:00:04]} 12. Kb1 {[%emt 0:01:27]} Nc4 {[%emt 0:00:55]} 13. Bxc4 {[%emt 0:00:08]} Rxc4 {[%emt 0:00:03]} 14. g4 {[%emt 0:00:37]} b5 {[%emt 0:00:10]} 15. g5 {[%emt 0:00:37]} Nh5 {[%emt 0:03:09]} 16. b3 {[%emt 0:00:27]} b4 {[%emt 0:05:58]} 17. Nd5 {[%emt 0:01:01]} Rc8 {[%emt 0:00:43]} 18. Nxb4 {[%emt 0:06:09]} a5 {[%emt 0:01:30]} 19. Nd5 {[%emt 0:02:15]} a4 {[%emt 0:05:19]} 20. Ne2 {[%emt 0:03:12]} Be6 {[%emt 0:03:59]} 21. Bd4 {[%emt 0:08:23]} Bxd5 {[%emt 0:02:01]} 22. exd5 {[%emt 0:00:21]} Qd7 {[%emt 0:03:47]} 23. Ng3 axb3 {[%emt 0:05:01]} 24. axb3 {[%emt 0:07:30]} Bxd4 {[%emt 0:11:22]} 25. Qxd4 {[%emt 0:00:24]} Nxg3 {[%emt 0:01:33]} 26. hxg3 {[%emt 0:00:30]} Qf5 {[%emt 0:04:12]} 27. Rd2 Qxg5 {[%emt 0:13:33]} 28. Rxh7 {[%emt 0:04:58]} Kxh7 {[%emt 0:01:59]} 29. Rh2+ {[%emt 0:00:08]} Qh6 {[%emt 0:00:03]} 30. Rxh6+ {[%emt 0:00:07]} Kxh6 {[%emt 0:00:04]} 31. Qh4+ {[%emt 0:00:15]} Kg7 {[%emt 0:00:04]} 32. Qxe7 {[%emt 0:00:05]} Rfe8 {[%emt 0:01:07]} 33. Qd7 {[%emt 0:02:50]} Rcd8 {[%emt 0:02:55]} 34. Qa7 {[%emt 0:01:50]} Re2 {[%emt 0:01:59]} 35. Qc7 {[%emt 0:06:01]} Ra8 {[%emt 0:08:01]} 36. Kb2 {[%emt 0:04:25]} Kg8 {[%emt 0:10:06]} 37. b4 {[%emt 0:06:45]} Re1 {[%emt 0:00:49]} 38. b5 {[%emt 0:09:51]} Raa1 {[%emt 0:00:54]} 39. b6 {[%emt 0:00:55]} Reb1+ {[%emt 0:01:00]} 40. Kc3 {[%emt 0:00:04]} Ra5 {[%emt 0:00:34]} 41. Qxd6 {[%emt 0:05:55]} Rab5 {[%emt 0:00:32]} 42. Kd4 {[%emt 0:07:27]} Rxb6 {[%emt 0:00:11]} 43. Qd8+ {[%emt 0:00:03]} Kg7 {[%emt 0:00:20]} 44. c4 {[%emt 0:00:47]} R6b3 {[%emt 0:12:51]} 45. f4 {[%emt 0:05:30]} Rxg3 46. Qe7 {[%emt 0:00:30]} Rd1+ 47. Kc5 {[%emt 0:00:30]} Rgd3 48. Qe5+ {[%emt 0:00:30]} Kg8 49. Kd6 {[%emt 0:00:30]} Ra3 50. Qe8+ {[%emt 0:00:30]} Kg7 51. c5 {[%emt 0:00:30]} Ra5 52. Qe5+ {[%emt 0:00:30]} Kg8 53. c6 {[%emt 0:00:30]} Rc1 54. Qe3 {[%emt 0:00:30]} Rd1 55. Qe8+ {[%emt 0:00:30]} Kg7 56. Qe5+ {[%emt 0:00:30]} f6 57. Qe7+ {[%emt 0:00:30]} Kh6 58. Qf7 {[%emt 0:00:30]} Ra8 59. Qxf6 {[%emt 0:00:30]} Kh7 60. f5 {[%emt 0:00:30]} Rg1 61. Qe7+ {[%emt 0:00:30]} Kh8 62. f6 {[%emt 0:00:30]} Rg8 63. f7 {[%emt 0:00:30]} 1-0